Workbook

Sheet Quiz
D1: =I4 -> 82 | F1: <- Voir oiseau du menu
D2: =I18 -> 100 | F2: =IF(J8="oui","2 choix - Utilisez la gomme !","") -> 
E3: =IF(I4>81," ","Taille : "&VLOOKUP(I4,Feuil2!A21:E106,4)&" cm") -> 
B4: =IF(I4>I7,"",VLOOKUP(I4,Feuil2!A21:D93,3)) ->  | C4: =IF(K5=0,"",IF(I8="oui","P","O")) ->  | D4: Répondre en cliquant sur le nom d'un oiseau. La gomme annule votre choix et libère le tirage. Les flèches du haut font simplement défiler les volatiles sans attendre une réponse. | G4: 4 | H4: Tirage / Menu | I4: 82 | J4: =IF(J21=1,IF(I5=0,J6,I5),E4) -> 40
B5: =IF(I4>I7,"",VLOOKUP(I4,Feuil2!A21:J93,9)) ->  | E5: =IF(I8="oui","",IF(OR(I21=1,I21=2),"8","?")) -> 8 | F5: =IF(I21>2,I16,"") ->  | G5: 5 | H5: Menu A /a+b | I5: 0 | J5: =IF(I21=2,E4,SUM(I5:I6)) -> 0 | K5: 0
G6: 6 | H6: Menu B | I6: 0 | J6: =I6+ 40 -> 40 | K6: =IF(I5=0,J6,I5) -> 40
G7: 7 | H7: nb oiseaux | I7: 80 | J7: 0 | K7: ="< nouveau tirage" -> < nouveau tirage
G8: 8 | H8: Bonne réponse | I8: =IF(I21=1,K35,IF(I4=J4,"oui","non")) -> non | J8: =IF(I5>0,IF(I6>0,"oui","non"),"non") -> non | K8: =IF(I5>0,IF(I6>0,"oui","non"),"non") -> non
G9: 9 | H9: Voir en défilant | I9: FALSE
G10: 10 | H10: Voir stat / latin | I10: FALSE | J10: FALSE
G11: 11 | H11: solution / famille | I11: FALSE | J11: FALSE
G12: 12 | H12: nb rep | I12: 0 | J12: =IF(INT((I12-I16)/5)<0,0,INT((I12-I16)/5)) -> 0
G13: 13 | H13: nb juste | I13: 0 | J13: =I13-I15 -> 0
G14: 14 | H14: nb gomme | I14: 0
B15: =IF(I26=TRUE,"Liste des tirages de cette partie :","") ->  | G15: 15 | H15: nb voir | I15: 0 | N15: Lettres
A16: 0 | B16: 1 | C16: =IF(A16=0,"",Q16&VLOOKUP(A16,Data,2)) ->  | G16: 16 | H16: nb tir | I16: 0 | J16: 100 | O16: =IF(N16="","",N16&" - ") ->  | P16: =" ("&A16&") - " -> (0) - | Q16: =IF($I$21=1,O16,IF($I$21=4,P16," ")) -> 
A17: 0 | B17: 2 | G17: 17 | H17: évaluation | J17: =IF(I16=0,0,ROUND(J16*(I13-J12-J22)/(I16),0)) -> 0 | O17: =IF(N17="","",N17&" - ") ->  | P17: =" ("&A17&") - " -> (0) - | Q17: =IF($I$21=1,O17,IF($I$21=4,P17," ")) -> 
A18: 0 | B18: 3 | G18: 18 | H18: zoom | I18: 100 | J18: =J17&"/100" -> 0/100 | P18: (0) -
A19: 0 | B19: 4 | G19: 19 | H19: Information | I19: 1 | P19: (0) -
A20: 0 | B20: 5 | G20: 20 | H20: grandeur | I20: =VLOOKUP(I4,Feuil2!A21:E105,4)*1.75 -> 0 | P20: (0) -
A21: 0 | B21: 6 | G21: 21 | H21: 1 no 2 sou 3 cla | I21: 2 | J21: =IF(I21=2,1,0) -> 1 | P21: (0) -
A22: 0 | B22: 7 | G22: 22 | H22: nb indices | I22: 0 | J22: =I22/4 -> 0 | P22: (0) -
A23: 0 | B23: 8 | G23: 23 | P23: (0) -
A24: 0 | B24: 9 | G24: 24 | H24: Position : | I24: =VLOOKUP(I4,Position,10) -> 0 | J24: D | K24: =IF(I24=J24,1,0) -> 0 | P24: (0) -
A25: 0 | B25: 10 | G25: 25 | P25: (0) -
A26: 0 | B26: 11 | G26: 26 | H26: Liste ; | I26: FALSE | P26: (0) -
A27: 0 | B27: 12 | G27: 27 | P27: (0) -
A28: 0 | B28: 13 | G28: 28 | P28: (0) -
A29: 0 | B29: 14 | G29: 29 | P29: (0) -
A30: 0 | B30: 15 | G30: 30 | H30: Tirage abcd | I30: 1 | J30: 12 | P30: (0) -
A31: 0 | B31: 16 | G31: 31 | I31: 2 | J31: 18 | L31: selection | M31: =INDEX(I36:J40,M33,2) ->  | P31: (0) -
A32: 0 | B32: 17 | G32: 32 | I32: 3 | J32: 75 | L32: rep menu | M32: 0 | P32: (0) -
A33: 0 | B33: 18 | G33: 33 | I33: 4 | J33: 55 | L33: rep ABCD | M33: =M32-1 -> -1 | P33: (0) -
A34: 0 | B34: 19 | G34: 34 | I34: 5 | J34: 29 | L34: v ABCD | M34: =MATCH(5,M36:M40,0) -> 1 | P34: (0) -
A35: 0 | B35: 20 | G35: 35 | I35: rang | K35: =IF(M35=1,"oui","non") -> non | M35: =IF(M33=M34,1,0) -> 0 | P35: (0) -
A36: 0 | B36: 21 | G36: 36 | H36: A | I36: =RANK(J30,$J$30:$J$34) -> 5 | J36: =VLOOKUP(I36,$I$30:$J$34,2) -> 29 | K36: 1 | L36: =IF($I$4>80,"","A "&VLOOKUP(J36,Feuil2!$A$20:$B$100,2)) ->  | M36: =I36 -> 5 | P36: (0) -
A37: 0 | B37: 22 | G37: 37 | H37: B | I37: =RANK(J31,$J$30:$J$34) -> 4 | J37: =VLOOKUP(I37,$I$30:$J$34,2) -> 55 | K37: 2 | L37: =IF($I$4>80,"","B "&VLOOKUP(J37,Feuil2!$A$20:$B$100,2)) ->  | M37: =I37 -> 4 | P37: (0) -
A38: 0 | B38: 23 | G38: 38 | H38: C | I38: 1 | J38: 12 | K38: 3 | L38: =IF($I$4>80,"","C "&VLOOKUP(J38,Feuil2!$A$20:$B$100,2)) ->  | M38: 1 | P38: (0) -
A39: 0 | B39: 24 | G39: 39 | H39: D | I39: 2 | J39: 18 | K39: 4 | L39: =IF($I$4>80,"","D "&VLOOKUP(J39,Feuil2!$A$20:$B$100,2)) ->  | M39: 2 | P39: (0) -
A40: 0 | B40: 25 | G40: 40 | H40: E | I40: 3 | J40: 75 | K40: 5 | L40: =IF($I$4>80,"","E "&VLOOKUP(J40,Feuil2!$A$20:$B$100,2)) ->  | M40: 3 | P40: (0) -
A41: 0 | B41: 26 | G41: 41 | K41: lettre juste | L41: =VLOOKUP(M34+35,G36:H40,2) -> A | P41: (0) -
A42: 0 | B42: 27 | P42: (0) -
A43: 0 | B43: 28 | P43: (0) -
A44: 0 | B44: 29 | P44: (0) -
A45: 0 | B45: 30 | P45: (0) -
A46: 0 | B46: 31 | P46: (0) -
A47: 0 | B47: 32 | P47: (0) -
A48: 0 | B48: 33 | C48: =IF(A48=0,"",Q48&VLOOKUP(A48,Data,2)) ->  | P48: (0) -
A49: 0 | B49: 34 | P49: (0) -
A50: 0 | B50: 35 | P50: (0) -
A51: 0 | B51: 36 | P51: (0) -
A52: 0 | B52: 37 | P52: (0) -
A53: 0 | B53: 38 | P53: (0) -
A54: 0 | B54: 39 | P54: (0) -
A55: 0 | B55: 40 | P55: (0) -
A56: 0 | B56: 41 | P56: (0) -
A57: 0 | B57: 42 | P57: (0) -
A58: 0 | B58: 43 | P58: (0) -
A59: 0 | B59: 44 | P59: (0) -
A60: 0 | B60: 45 | P60: (0) -
A61: 0 | B61: 46 | P61: (0) -
A62: 0 | B62: 47 | P62: (0) -
A63: 0 | B63: 48 | P63: (0) -
A64: 0 | B64: 49 | P64: (0) -
A65: 0 | B65: 50 | P65: (0) -
A66: 0 | B66: 51 | P66: (0) -
A67: 0 | B67: 52 | P67: (0) -
A68: 0 | B68: 53 | P68: (0) -
A69: 0 | B69: 54 | P69: (0) -
A70: 0 | B70: 55 | P70: (0) -
A71: 0 | B71: 56 | P71: (0) -
A72: 0 | B72: 57 | P72: (0) -
A73: 0 | B73: 58 | P73: (0) -
A74: 0 | B74: 59 | P74: (0) -
A75: 0 | B75: 60 | P75: (0) -
A76: 0 | B76: 61 | P76: (0) -
A77: 0 | B77: 62 | P77: (0) -
A78: 0 | B78: 63 | P78: (0) -
A79: 0 | B79: 64 | P79: (0) -
A80: 0 | B80: 65 | C80: =IF(A80=0,"",Q80&VLOOKUP(A80,Data,2)) ->  | P80: (0) -
A81: 0 | B81: 66 | O81: =IF(N81="","",N81&" - ") ->  | P81: =" ("&A81&") - " -> (0) - | Q81: =IF($I$21=1,O81,IF($I$21=4,P81," ")) -> 
A82: 0 | B82: 67 | P82: (0) -
A83: 0 | B83: 68 | P83: (0) -
A84: 0 | B84: 69 | P84: (0) -
A85: 0 | B85: 70 | P85: (0) -
A86: 0 | B86: 71 | P86: (0) -
A87: 0 | B87: 72 | P87: (0) -
A88: 0 | B88: 73 | P88: (0) -
A89: 0 | B89: 74 | P89: (0) -
A90: 0 | B90: 75 | O90: =IF(N90="","",N90&" - ") ->  | P90: (0) -
A91: 0 | B91: 76 | P91: (0) -
A92: 0 | B92: 77 | P92: (0) -
A93: 0 | B93: 78 | P93: (0) -
A94: 0 | B94: 79 | P94: (0) -
A95: 0 | B95: 80 | P95: (0) -
B96: 81 | C96: =IF(A96=0,""," ("&A96&") - "&VLOOKUP(A96,Data,2)) -> 
B97: 82
B98: 83

Sheet Aide visuelle
A108: Chant des oiseaux sur la RTS :
A110: https://www.rts.ch/la-1ere/programmes/monsieur-jardinier/9522981-les-oiseaux-de-nos-jardins.html

Sheet Feuil2 (hidden)
B1: 1 | C1: 2 | D1: 3 | E1: 4 | F1: 5 | G1: 6 | H1: 7 | I1: 8 | J1: 9 | K1: 10 | L1: 11 | M1: 12 | N1: 13 | O1: 14 | P1: 15 | Q1: 16 | R1: 17 | S1: 18 | T1: 19 | U1: 20 | V1: 21 | W1: 22 | X1: 23 | Y1: 24 | Z1: 25 | AA1: 26 | AB1: 27 | AC1: 28 | AD1: 29 | AE1: 30 | AF1: 31 | AG1: 32 | AH1: 33 | AI1: 34 | AJ1: 35 | AK1: 36 | AL1: 37 | AM1: 38 | AN1: 39 | AO1: 40 | AP1: 41 | AQ1: 42 | AR1: 43 | AS1: 44 | AT1: 45 | AU1: 46 | AV1: 47 | AW1: 48 | AX1: 49 | AY1: 50 | AZ1: 51 | BA1: 52 | BB1: 53 | BC1: 54 | BD1: 55 | BE1: 56 | BF1: 57 | BG1: 58 | BH1: 59 | BI1: 60 | BJ1: 61 | BK1: 62 | BL1: 63 | BM1: 64 | BN1: 65 | BO1: 66 | BP1: 67 | BQ1: 68 | BR1: 69 | BS1: 70 | BT1: 71 | BU1: 72 | BV1: 73 | BW1: 74 | BX1: 75 | BY1: 76 | BZ1: 77 | CA1: 78 | CB1: 79 | CC1: 80 | CD1: 81 | CE1: 82 | CF1: 83 | CG1: 84 | CH1: 85 | CI1: 87 | CJ1: 88 | CK1: 89 | CL1: 90 | CM1: 91 | CN1: 92 | CO1: 93 | CP1: 94 | CQ1: 95 | CR1: 96 | CS1: 97 | CT1: 89 | CU1: 90
CE2: Bienvenue dans le QUIZ ornithologique. Cliquez sur un oiseau pour afficher une nouvelle espèce ! (ou Ctrl + q) | CF2: Tous les oiseaux ont été vues… Bravo !
B4: Aigle royal | C4: Aigrette garzette | D4: Alouette des champs | E4: Barge rousse | F4: Bécasse des bois | G4: Bergeronnette printanière | H4: Bergeronnette grise | I4: Bouvreuil pivoine | J4: Bruant rustique | K4: Buse variable | L4: Caille des blés | M4: Canard colvert | N4: Cassenoix moucheté | O4: Chardonneret élégant | P4: Chevalier stagnatile | Q4: Chocard à bec jaune | R4: Chouette hulotte | S4: Cigogne blanche | T4: Corbeau freux | U4: Cormoran (grand) | V4: Corneille noire | W4: Coucou gris | X4: Épervier d'Europe | Y4: Étourneau sansonnet | Z4: Faisan de Colchide | AA4: Faucon crécerellette | AB4: Fauvette des jardins | AC4: Fou de Bassan | AD4: Foulque macroule | AE4: Geai des chênes | AF4: Gobemouche noir | AG4: Goéland argenté | AH4: Grand Tétras | AI4: Grand-duc d'Europe | AJ4: Grèbe huppé | AK4: Grive musicienne | AL4: Grosbec casse-noyaux | AM4: Grue cendrée | AN4: Guêpier d'Europe | AO4: Gypaète barbu | AP4: Héron cendré | AQ4: Hirondelle rustique | AR4: Huppe fasciée | AS4: Lagopède alpin | AT4: Linotte mélodieuse | AU4: Loriot d'Europe | AV4: Martinet noir | AW4: Martin-pêcheur d'Europe | AX4: Merle noir | AY4: Mésange bleue | AZ4: Mésange charbonnière | BA4: Mésange huppée | BB4: Mésange noire | BC4: Mésange nonnette | BD4: Milan royal | BE4: Moineau domestique | BF4: Mouettes rieuse | BG4: Pélican blanc | BH4: Perdrix bartavelle | BI4: Petit-duc scops | BJ4: Pic épeiche | BK4: Pic noir | BL4: Pie bavarde | BM4: Pie-grièche à tête rousse | BN4: Pigeon ramier | BO4: Pinson du Nord | BP4: Pouillot à grands sourcils | BQ4: Roitelet à triple bandeau | BR4: Rossignol péhilomèle | BS4: Rougegorge familier | BT4: Rougequeue noir | BU4: Rousserolle effarvatte | BV4: Sarcelle d'hiver | BW4: Serin cini | BX4: Sittelle torchepot | BY4: Spatule blanche | BZ4: Tarin des aulnes | CA4: Tourterelle turque | CB4: Troglodyte mignon | CC4: Vautour fauve
B5: Milans, Vautours, Buses | C5: Hérons, Butors | D5: Alouettes | E5: Chevaliers et Bécasseaux | F5: Chevaliers et Bécasseaux | G5: Pipits et Bergeronnettes | H5: Pipits et Bergeronnettes | I5: Fringilles | J5: Bruants | K5: Milans, Vautours, Buses | L5: Faisans | M5: Canards, Oies et Cygnes | N5: Corvidés | O5: Fringilles | P5: Chevaliers et Bécasseaux | Q5: Corvidés | R5: Chouettes et Hiboux | S5: Cigognes | T5: Corvidés | U5: Cormorans | V5: Corvidés | W5: Coucous | X5: Milans, Vautours, Buses | Y5: Étourneaux | Z5: Faisans | AA5: Faucons | AB5: Fauvettes et alliés | AC5: Fous | AD5: Râles et Foulques | AE5: Corvidés | AF5: Gobemouches | AG5: Mouettes et Goélands | AH5: Tétras | AI5: Chouettes et Hiboux | AJ5: Grèbes | AK5: Merles, Grives et Traquets | AL5: Fringilles | AM5: Grues | AN5: Guêpiers | AO5: Milans, Vautours, Buses | AP5: Hérons, Butors | AQ5: Hirondelles | AR5: Huppes | AS5: Tétras | AT5: Fringilles | AU5: Loriots | AV5: Martinets | AW5: Martins-pêcheurs | AX5: Merles, Grives et Traquets | AY5: Mésanges | AZ5: Mésanges | BA5: Mésanges | BB5: Mésanges | BC5: Mésanges | BD5: Milans, Vautours, Buses | BE5: Moineaux | BF5: Mouettes et Goélands | BG5: Pélicans | BH5: Faisans | BI5: Chouettes et hiboux | BJ5: Pics | BK5: Pics | BL5: Corvidés | BM5: Pies-grièches | BN5: Pigeons et Tourterelles | BO5: Fringilles | BP5: Fauvettes | BQ5: Fauvettes | BR5: Merles, Grives et Traquets | BS5: Merles, Grives et Traquets | BT5: Merles, Grives et Traquets | BU5: Fauvettes et alliés | BV5: Canards, Oies et Cygnes | BW5: Fringilles | BX5: Sittelles | BY5: Spatules | BZ5: Fringilles | CA5: Pigeons et Tourterelles | CB5: Trpglodyte | CC5: Milans, Vautours, Buses
B6: =AVERAGE(B$7:B$8) -> 81.5 | C6: =AVERAGE(C$7:C$8) -> 60 | D6: =AVERAGE(D$7:D$8) -> 18.5 | E6: 37 | F6: =AVERAGE(F$7:F$8) -> 34 | G6: =AVERAGE(G$7:G$8) -> 17 | H6: =AVERAGE(H$7:H$8) -> 18 | I6: =AVERAGE(I$7:I$8) -> 13.5 | J6: =AVERAGE(J$7:J$8) -> 13.5 | K6: =AVERAGE(K$7:K$8) -> 53.5 | L6: 17 | M6: 57.5 | N6: 32.5 | O6: 12.5 | P6: 23.5 | Q6: 37.5 | R6: 38 | S6: 107.5 | T6: 45 | U6: 87 | V6: 47.5 | W6: 33 | X6: =AVERAGE(X$7:X$8) -> 33 | Y6: =AVERAGE(Y$7:Y$8) -> 20.5 | Z6: 72.5 | AA6: 30 | AB6: 13.5 | AC6: 77.5 | AD6: 37 | AE6: 33.5 | AF6: 12.5 | AG6: 57 | AH6: 73.5 | AI6: 67.5 | AJ6: =AVERAGE(AJ$7:AJ$8) -> 48.5 | AK6: =AVERAGE(AK$7:AK$8) -> 22.5 | AL6: =AVERAGE(AL$7:AL$8) -> 17.5 | AM6: =AVERAGE(AM$7:AM$8) -> 107.5 | AN6: 28 | AO6: 107.5 | AP6: =AVERAGE(AP$7:AP$8) -> 94 | AQ6: =AVERAGE(AQ$7:AQ$8) -> 19 | AR6: =AVERAGE(AR$7:AR$8) -> 27 | AS6: 35 | AT6: 13.5 | AU6: 23.5 | AV6: =AVERAGE(AV$7:AV$8) -> 16.5 | AW6: =AVERAGE(AW$7:AW$8) -> 16.5 | AX6: 26.5 | AY6: =AVERAGE(AY$7:AY$8) -> 11.5 | AZ6: 14.5 | BA6: 11.5 | BB6: 11 | BC6: 12.5 | BD6: 64.5 | BE6: 14.5 | BF6: 35.5 | BG6: =AVERAGE(BG$7:BG$8) -> 157.5 | BH6: 33.5 | BI6: 19.5 | BJ6: =AVERAGE(BJ$7:BJ$8) -> 22.5 | BK6: =AVERAGE(BK$7:BK$8) -> 43 | BL6: 45.5 | BM6: 18 | BN6: 41 | BO6: 15 | BP6: 9.5 | BQ6: 9.5 | BR6: 16 | BS6: =AVERAGE(BS$7:BS$8) -> 13 | BT6: 14 | BU6: 13 | BV6: 36 | BW6: 11.5 | BX6: 14 | BY6: 86.5 | BZ6: 11.5 | CA6: 32 | CB6: 9.5 | CC6: 102.5 | CD6: 0 | CE6: 0 | CF6: 0 | CQ6: =AVERAGE(CQ$7:CQ$8) -> 
B7: 75 | C7: 55 | D7: 18 | E7: 33 | F7: 33 | G7: 16 | H7: 17 | I7: 13 | J7: 13 | K7: 50 | L7: 16 | M7: 50 | N7: 32 | O7: 12 | P7: 22 | Q7: 36 | R7: 37 | S7: 100 | T7: 41 | U7: 84 | V7: 44 | W7: 32 | X7: 28 | Y7: 19 | Z7: 55 | AA7: 27 | AB7: 13 | AC7: 58 | AD7: 36 | AE7: 32 | AF7: 12 | AG7: 54 | AH7: 60 | AI7: 60 | AJ7: 46 | AK7: 21 | AL7: 17 | AM7: 96 | AN7: 27 | AO7: 100 | AP7: 90 | AQ7: 17 | AR7: 26 | AS7: 34 | AT7: 13 | AU7: 22 | AV7: 16 | AW7: 16 | AX7: 24 | AY7: 11 | AZ7: 14 | BA7: 11 | BB7: 10 | BC7: 12 | BD7: 56 | BE7: 14 | BF7: 34 | BG7: 140 | BH7: 32 | BI7: 19 | BJ7: 22 | BK7: 40 | BL7: 40 | BM7: 17 | BN7: 40 | BO7: 14 | BP7: 9 | BQ7: 9 | BR7: 15 | BS7: 12 | BT7: 13 | BU7: 12 | BV7: 34 | BW7: 11 | BX7: 13 | BY7: 80 | BZ7: 11 | CA7: 31 | CB7: 9 | CC7: 95 | CD7: 0 | CE7: 0 | CF7: 0
B8: 88 | C8: 65 | D8: 19 | E8: 41 | F8: 35 | G8: 18 | H8: 19 | I8: 14 | J8: 14 | K8: 57 | L8: 18 | M8: 65 | N8: 33 | O8: 13 | P8: 25 | Q8: 39 | R8: 39 | S8: 115 | T8: 49 | U8: 90 | V8: 51 | W8: 34 | X8: 38 | Y8: 22 | Z8: 90 | AA8: 33 | AB8: 14 | AC8: 97 | AD8: 38 | AE8: 35 | AF8: 13 | AG8: 60 | AH8: 87 | AI8: 75 | AJ8: 51 | AK8: 24 | AL8: 18 | AM8: 119 | AN8: 29 | AO8: 115 | AP8: 98 | AQ8: 21 | AR8: 28 | AS8: 36 | AT8: 14 | AU8: 25 | AV8: 17 | AW8: 17 | AX8: 29 | AY8: 12 | AZ8: 15 | BA8: 12 | BB8: 12 | BC8: 13 | BD8: 73 | BE8: 15 | BF8: 37 | BG8: 175 | BH8: 35 | BI8: 20 | BJ8: 23 | BK8: 46 | BL8: 51 | BM8: 19 | BN8: 42 | BO8: 16 | BP8: 10 | BQ8: 10 | BR8: 17 | BS8: 14 | BT8: 15 | BU8: 14 | BV8: 38 | BW8: 12 | BX8: 15 | BY8: 93 | BZ8: 12 | CA8: 33 | CB8: 10 | CC8: 110 | CD8: 0 | CE8: 0 | CF8: 0
B9: D | C9: D | D9: D | E9: D | F9: G | G9: G | H9: G | I9: D | J9: G | K9: D | L9: G | M9: G | N9: G | O9: G | P9: G | Q9: D | R9: D | S9: G | T9: G | U9: D | V9: D | W9: G | X9: G | Y9: D | Z9: D | AA9: G | AB9: G | AC9: D | AD9: G | AE9: G | AF9: G | AG9: D | AH9: D | AI9: D | AJ9: D | AK9: D | AL9: G | AM9: D | AN9: D | AO9: G | AP9: D | AQ9: D | AR9: G | AS9: G | AT9: D | AU9: G | AV9: D | AW9: D | AX9: D | AY9: G | AZ9: D | BA9: G | BB9: D | BC9: G | BD9: D | BE9: G | BF9: G | BG9: G | BH9: D | BI9: D | BJ9: G | BK9: G | BL9: D | BM9: G | BN9: G | BO9: D | BP9: D | BQ9: D | BR9: G | BS9: G | BT9: D | BU9: D | BV9: D | BW9: D | BX9: D | BY9: G | BZ9: D | CA9: D | CB9: G | CC9: G
A18: https://www.vogelwarte.ch/fr/oiseaux/les-oiseaux-de-suisse/
B20: Nom | C20: Groupe | D20: moyenne | J20: Gaude-Droite
A21: 1 | B21: =TRANSPOSE(B4:CG6) -> Aigle royal | C21: Milans, Vautours, Buses | D21: 81.5 | E21: =A21&" "&B21 -> 1 Aigle royal | F21: ="A" -> A | G21: =F21&" "&B21 -> A Aigle royal | H21: =" "&A21 -> 1 | I21: A, B, C | J21: =TRANSPOSE(B9:CC9) -> D
A22: 2 | B22: Aigrette garzette | C22: Hérons, Butors | D22: 60 | E22: =A22&" "&B22 -> 2 Aigrette garzette | F22: =" " ->  | G22: =F22&" "&B22 -> Aigrette garzette | H22: =" "&A22 -> 2 | I22: A, B, C | J22: D
A23: 3 | B23: Alouette des champs | C23: Alouettes | D23: 18.5 | E23: 3 Alouette des champs | F23: =" " ->  | G23: =F23&" "&B23 -> Alouette des champs | H23: 3 | I23: A, B, C | J23: D
A24: 4 | B24: Barge rousse | C24: Chevaliers et Bécasseaux | D24: 37 | E24: 4 Barge rousse | F24: ="B " -> B | G24: =F24&" "&B24 -> B Barge rousse | H24: 4 | I24: A, B, C | J24: D
A25: 5 | B25: Bécasse des bois | C25: Chevaliers et Bécasseaux | D25: 34 | E25: 5 Bécasse des bois | F25: =" " ->  | G25: Bécasse des bois | H25: 5 | I25: A, B, C | J25: G
A26: 6 | B26: Bergeronnette printanière | C26: Pipits et Bergeronnettes | D26: 17 | E26: 6 Bergeronnette printanière | G26: Bergeronnette printanière | H26: 6 | I26: A, B, C | J26: G
A27: 7 | B27: Bergeronnette grise | C27: Pipits et Bergeronnettes | D27: 18 | E27: 7 Bergeronnette grise | G27: Bergeronnette grise | H27: 7 | I27: A, B, C | J27: G
A28: 8 | B28: Bouvreuil pivoine | C28: Fringilles | D28: 13.5 | E28: 8 Bouvreuil pivoine | G28: Bouvreuil pivoine | H28: 8 | I28: A, B, C | J28: D
A29: 9 | B29: Bruant rustique | C29: Bruants | D29: 13.5 | E29: 9 Bruant rustique | G29: Bruant rustique | H29: 9 | I29: A, B, C | J29: G
A30: 10 | B30: Buse variable | C30: Milans, Vautours, Buses | D30: 53.5 | E30: 10 Buse variable | G30: Buse variable | H30: 10 | I30: A, B, C | J30: D
A31: 11 | B31: Caille des blés | C31: Faisans | D31: 17 | E31: 11 Caille des blés | F31: ="C" -> C | G31: =F31&" "&B31 -> C Caille des blés | H31: 11 | I31: A, B, C | J31: G
A32: 12 | B32: Canard colvert | C32: Canards, Oies et Cygnes | D32: 57.5 | E32: 12 Canard colvert | F32: =" " ->  | G32: Canard colvert | H32: 12 | I32: A, B, C | J32: G
A33: 13 | B33: Cassenoix moucheté | C33: Corvidés | D33: 32.5 | E33: 13 Cassenoix moucheté | G33: Cassenoix moucheté | H33: 13 | I33: A, B, C | J33: G
A34: 14 | B34: Chardonneret élégant | C34: Fringilles | D34: 12.5 | E34: 14 Chardonneret élégant | G34: Chardonneret élégant | H34: 14 | I34: A, B, C | J34: G
A35: 15 | B35: Chevalier stagnatile | C35: Chevaliers et Bécasseaux | D35: 23.5 | E35: 15 Chevalier stagnatile | G35: Chevalier stagnatile | H35: 15 | I35: A, B, C | J35: G
A36: 16 | B36: Chocard à bec jaune | C36: Corvidés | D36: 37.5 | E36: 16 Chocard à bec jaune | G36: Chocard à bec jaune | H36: 16 | I36: A, B, C | J36: D
A37: 17 | B37: Chouette hulotte | C37: Chouettes et Hiboux | D37: 38 | E37: 17 Chouette hulotte | G37: Chouette hulotte | H37: 17 | I37: A, B, C | J37: D
A38: 18 | B38: Cigogne blanche | C38: Cigognes | D38: 107.5 | E38: 18 Cigogne blanche | G38: Cigogne blanche | H38: 18 | I38: A, B, C | J38: G
A39: 19 | B39: Corbeau freux | C39: Corvidés | D39: 45 | E39: 19 Corbeau freux | G39: Corbeau freux | H39: 19 | I39: A, B, C | J39: G
A40: 20 | B40: Cormoran (grand) | C40: Cormorans | D40: 87 | E40: 20 Cormoran (grand) | G40: Cormoran (grand) | H40: 20 | I40: A, B, C | J40: D
A41: 21 | B41: Corneille noire | C41: Corvidés | D41: 47.5 | E41: 21 Corneille noire | G41: Corneille noire | H41: 21 | I41: A, B, C | J41: D
A42: 22 | B42: Coucou gris | C42: Coucous | D42: 33 | E42: 22 Coucou gris | G42: Coucou gris | H42: 22 | I42: A, B, C | J42: G
A43: 23 | B43: Épervier d'Europe | C43: Milans, Vautours, Buses | D43: 33 | E43: 23 Épervier d'Europe | F43: ="E" -> E | G43: =F43&" "&B43 -> E Épervier d'Europe | H43: 23 | I43: D, E, F | J43: G
A44: 24 | B44: Étourneau sansonnet | C44: Étourneaux | D44: 20.5 | E44: 24 Étourneau sansonnet | G44: Étourneau sansonnet | H44: 24 | I44: D, E, F | J44: D
A45: 25 | B45: Faisan de Colchide | C45: Faisans | D45: 72.5 | E45: 25 Faisan de Colchide | F45: ="F" -> F | G45: =F45&" "&B45 -> F Faisan de Colchide | H45: 25 | I45: D, E, F | J45: D
A46: 26 | B46: Faucon crécerellette | C46: Faucons | D46: 30 | E46: 26 Faucon crécerellette | F46: =" " ->  | G46: Faucon crécerellette | H46: 26 | I46: D, E, F | J46: G
A47: 27 | B47: Fauvette des jardins | C47: Fauvettes et alliés | D47: 13.5 | E47: 27 Fauvette des jardins | G47: Fauvette des jardins | H47: 27 | I47: D, E, F | J47: G
A48: 28 | B48: Fou de Bassan | C48: Fous | D48: 77.5 | E48: 28 Fou de Bassan | G48: Fou de Bassan | H48: 28 | I48: D, E, F | J48: D
A49: 29 | B49: Foulque macroule | C49: Râles et Foulques | D49: 37 | E49: 29 Foulque macroule | G49: Foulque macroule | H49: 29 | I49: D, E, F | J49: G
A50: 30 | B50: Geai des chênes | C50: Corvidés | D50: 33.5 | E50: 30 Geai des chênes | F50: ="G" -> G | G50: G Geai des chênes | H50: 30 | I50: G, H, I | J50: G
A51: 31 | B51: Gobemouche noir | C51: Gobemouches | D51: 12.5 | E51: 31 Gobemouche noir | F51: =" " ->  | G51: Gobemouche noir | H51: 31 | I51: G, H, I | J51: G
A52: 32 | B52: Goéland argenté | C52: Mouettes et Goélands | D52: 57 | E52: 32 Goéland argenté | G52: Goéland argenté | H52: 32 | I52: G, H, I | J52: D
A53: 33 | B53: Grand Tétras | C53: Tétras | D53: 73.5 | E53: 33 Grand Tétras | G53: Grand Tétras | H53: 33 | I53: G, H, I | J53: D
A54: 34 | B54: Grand-duc d'Europe | C54: Chouettes et Hiboux | D54: 67.5 | E54: 34 Grand-duc d'Europe | G54: Grand-duc d'Europe | H54: 34 | I54: G, H, I | J54: D
A55: 35 | B55: Grèbe huppé | C55: Grèbes | D55: 48.5 | E55: 35 Grèbe huppé | G55: Grèbe huppé | H55: 35 | I55: G, H, I | J55: D
A56: 36 | B56: Grive musicienne | C56: Merles, Grives et Traquets | D56: 22.5 | E56: 36 Grive musicienne | G56: Grive musicienne | H56: 36 | I56: G, H, I | J56: D
A57: 37 | B57: Grosbec casse-noyaux | C57: Fringilles | D57: 17.5 | E57: 37 Grosbec casse-noyaux | G57: Grosbec casse-noyaux | H57: 37 | I57: G, H, I | J57: G
A58: 38 | B58: Grue cendrée | C58: Grues | D58: 107.5 | E58: 38 Grue cendrée | G58: Grue cendrée | H58: 38 | I58: G, H, I | J58: D
A59: 39 | B59: Guêpier d'Europe | C59: Guêpiers | D59: 28 | E59: 39 Guêpier d'Europe | G59: Guêpier d'Europe | H59: 39 | I59: G, H, I | J59: D
A60: 40 | B60: Gypaète barbu | C60: Milans, Vautours, Buses | D60: 107.5 | E60: 40 Gypaète barbu | G60: Gypaète barbu | H60: 40 | I60: G, H, I | J60: G
A61: 41 | B61: Héron cendré | C61: Hérons, Butors | D61: 94 | E61: 41 Héron cendré | F61: ="H" -> H | G61: H Héron cendré | H61: 41 | I61: G, H, I | J61: D
A62: 42 | B62: Hirondelle rustique | C62: Hirondelles | D62: 19 | E62: 42 Hirondelle rustique | F62: =" " ->  | G62: Hirondelle rustique | H62: 42 | I62: G, H, I | J62: D
A63: 43 | B63: Huppe fasciée | C63: Huppes | D63: 27 | E63: 43 Huppe fasciée | F63: =" " ->  | G63: Huppe fasciée | H63: 43 | I63: G, H, I | J63: G
A64: 44 | B64: Lagopède alpin | C64: Tétras | D64: 35 | E64: 44 Lagopède alpin | F64: ="L" -> L | G64: =F64&" "&B64 -> L Lagopède alpin | H64: 44 | I64: L, M, N | J64: G
A65: 45 | B65: Linotte mélodieuse | C65: Fringilles | D65: 13.5 | E65: 45 Linotte mélodieuse | F65: =" " ->  | G65: Linotte mélodieuse | H65: 45 | I65: L, M, N | J65: D
A66: 46 | B66: Loriot d'Europe | C66: Loriots | D66: 23.5 | E66: 46 Loriot d'Europe | G66: Loriot d'Europe | H66: 46 | I66: L, M, N | J66: G
A67: 47 | B67: Martinet noir | C67: Martinets | D67: 16.5 | E67: 47 Martinet noir | F67: ="M" -> M | G67: =F67&" "&B67 -> M Martinet noir | H67: 47 | I67: L, M, N | J67: D
A68: 48 | B68: Martin-pêcheur d'Europe | C68: Martins-pêcheurs | D68: 16.5 | E68: 48 Martin-pêcheur d'Europe | F68: =" " ->  | G68: Martin-pêcheur d'Europe | H68: 48 | I68: L, M, N | J68: D
A69: 49 | B69: Merle noir | C69: Merles, Grives et Traquets | D69: 26.5 | E69: 49 Merle noir | G69: Merle noir | H69: 49 | I69: L, M, N | J69: D
A70: 50 | B70: Mésange bleue | C70: Mésanges | D70: 11.5 | E70: 50 Mésange bleue | G70: Mésange bleue | H70: 50 | I70: L, M, N | J70: G
A71: 51 | B71: Mésange charbonnière | C71: Mésanges | D71: 14.5 | E71: 51 Mésange charbonnière | G71: Mésange charbonnière | H71: 51 | I71: L, M, N | J71: D
A72: 52 | B72: Mésange huppée | C72: Mésanges | D72: 11.5 | E72: 52 Mésange huppée | G72: Mésange huppée | H72: 52 | I72: L, M, N | J72: G
A73: 53 | B73: Mésange noire | C73: Mésanges | D73: 11 | E73: 53 Mésange noire | G73: Mésange noire | H73: 53 | I73: L, M, N | J73: D
A74: 54 | B74: Mésange nonnette | C74: Mésanges | D74: 12.5 | E74: 54 Mésange nonnette | G74: Mésange nonnette | H74: 54 | I74: L, M, N | J74: G
A75: 55 | B75: Milan royal | C75: Milans, Vautours, Buses | D75: 64.5 | E75: 55 Milan royal | G75: Milan royal | H75: 55 | I75: L, M, N | J75: D
A76: 56 | B76: Moineau domestique | C76: Moineaux | D76: 14.5 | E76: 56 Moineau domestique | G76: Moineau domestique | H76: 56 | I76: L, M, N | J76: G
A77: 57 | B77: Mouettes rieuse | C77: Mouettes et Goélands | D77: 35.5 | E77: 57 Mouettes rieuse | G77: Mouettes rieuse | H77: 57 | I77: L, M, N | J77: G
A78: 58 | B78: Pélican blanc | C78: Pélicans | D78: 157.5 | E78: 58 Pélican blanc | F78: ="P" -> P | G78: =F78&" "&B78 -> P Pélican blanc | H78: 58 | I78: P, Q, R | J78: G
A79: 59 | B79: Perdrix bartavelle | C79: Faisans | D79: 33.5 | E79: 59 Perdrix bartavelle | F79: =" " ->  | G79: Perdrix bartavelle | H79: 59 | I79: P, Q, R | J79: D
A80: 60 | B80: Petit-duc scops | C80: Chouettes et hiboux | D80: 19.5 | E80: 60 Petit-duc scops | G80: Petit-duc scops | H80: 60 | I80: P, Q, R | J80: D
A81: 61 | B81: Pic épeiche | C81: Pics | D81: 22.5 | E81: 61 Pic épeiche | G81: Pic épeiche | H81: 61 | I81: P, Q, R | J81: G
A82: 62 | B82: Pic noir | C82: Pics | D82: 43 | E82: 62 Pic noir | G82: Pic noir | H82: 62 | I82: P, Q, R | J82: G
A83: 63 | B83: Pie bavarde | C83: Corvidés | D83: 45.5 | E83: 63 Pie bavarde | G83: Pie bavarde | H83: 63 | I83: P, Q, R | J83: D
A84: 64 | B84: Pie-grièche à tête rousse | C84: Pies-grièches | D84: 18 | E84: 64 Pie-grièche à tête rousse | G84: Pie-grièche à tête rousse | H84: 64 | I84: P, Q, R | J84: G
A85: 65 | B85: Pigeon ramier | C85: Pigeons et Tourterelles | D85: 41 | E85: 65 Pigeon ramier | G85: Pigeon ramier | H85: 65 | I85: P, Q, R | J85: G
A86: 66 | B86: Pinson du Nord | C86: Fringilles | D86: 15 | E86: =A86&" "&B86 -> 66 Pinson du Nord | G86: =F86&" "&B86 -> Pinson du Nord | H86: =" "&A86 -> 66 | I86: P, Q, R | J86: D
A87: 67 | B87: Pouillot à grands sourcils | C87: Fauvettes | D87: 9.5 | E87: 67 Pouillot à grands sourcils | G87: Pouillot à grands sourcils | H87: 67 | I87: P, Q, R | J87: D
A88: 68 | B88: Roitelet à triple bandeau | C88: Fauvettes | D88: 9.5 | E88: 68 Roitelet à triple bandeau | F88: ="R" -> R | G88: =F88&" "&B88 -> R Roitelet à triple bandeau | H88: 68 | I88: P, Q, R | J88: D
A89: 69 | B89: Rossignol péhilomèle | C89: Merles, Grives et Traquets | D89: 16 | E89: 69 Rossignol péhilomèle | G89: Rossignol péhilomèle | H89: 69 | I89: P, Q, R | J89: G
A90: 70 | B90: Rougegorge familier | C90: Merles, Grives et Traquets | D90: 13 | E90: 70 Rougegorge familier | G90: Rougegorge familier | H90: 70 | I90: P, Q, R | J90: G
A91: 71 | B91: Rougequeue noir | C91: Merles, Grives et Traquets | D91: 14 | E91: 71 Rougequeue noir | G91: Rougequeue noir | H91: 71 | I91: P, Q, R | J91: D
A92: 72 | B92: Rousserolle effarvatte | C92: Fauvettes et alliés | D92: 13 | E92: 72 Rousserolle effarvatte | G92: Rousserolle effarvatte | H92: 72 | I92: P, Q, R | J92: D
A93: 73 | B93: Sarcelle d'hiver | C93: Canards, Oies et Cygnes | D93: 36 | E93: 73 Sarcelle d'hiver | F93: ="S" -> S | G93: =F93&" "&B93 -> S Sarcelle d'hiver | H93: 73 | I93: S, T, V | J93: D
A94: 74 | B94: Serin cini | C94: Fringilles | D94: 11.5 | E94: 74 Serin cini | G94: Serin cini | H94: 74 | I94: S, T, V | J94: D
A95: 75 | B95: Sittelle torchepot | C95: Sittelles | D95: 14 | E95: 75 Sittelle torchepot | G95: Sittelle torchepot | H95: 75 | I95: S, T, V | J95: D
A96: 76 | B96: Spatule blanche | C96: Spatules | D96: 86.5 | E96: 76 Spatule blanche | G96: Spatule blanche | H96: 76 | I96: S, T, V | J96: G
A97: 77 | B97: Tarin des aulnes | C97: Fringilles | D97: 11.5 | E97: 77 Tarin des aulnes | F97: ="T" -> T | G97: =F97&" "&B97 -> T Tarin des aulnes | H97: 77 | I97: S, T, V | J97: D
A98: 78 | B98: Tourterelle turque | C98: Pigeons et Tourterelles | D98: 32 | E98: 78 Tourterelle turque | G98: Tourterelle turque | H98: 78 | I98: S, T, V | J98: D
A99: 79 | B99: Troglodyte mignon | C99: Trpglodyte | D99: 9.5 | E99: 79 Troglodyte mignon | G99: Troglodyte mignon | H99: 79 | I99: S, T, V | J99: G
A100: 80 | B100: Vautour fauve | C100: Milans, Vautours, Buses | D100: 102.5 | E100: 80 Vautour fauve | F100: ="V" -> V | G100: =F100&" "&B100 -> V Vautour fauve | H100: 80 | I100: S, T, V | J100: G
A101: 81 | D101: 0 | E101: 81 | H101: 81
A102: 82 | D102: 0 | E102: 82 | H102: 82
A103: 83 | D103: 0 | E103: 83 | H103: 83
A104: 84
